Cogmind - Beta 10.2 @@@ ROGUE MODE // 2021.11.03 @ 04:42:23 Player: Saya Result: Destroyed by S-10 Pest with Light Assault Rifle Performance ------------- Evolutions (0) 0 Regions Visited (4) 800 Robots Destroyed (26) 130 Value Destroyed (497) 497 Prototype IDs (23) 460 Alien Tech Used (0) 0 Bonus (300) 300 TOTAL SCORE: 2187 Bonus ------- Aligned with FarCom 300 Cogmind --------- Core Integrity 0/250 Matter 300/300 Energy 248/250 System Corruption 0% Temperature Cool (0) Movement Rolling (120) Ox3 Location -9/Mines Parts ------- > --- POWER (1) -------- Ion Engine > --- PROPULSION (2) --- Wheel Compact Wheel > --- UTILITY (2) ------ Humpback > --- WEAPON (2) ------- Heavy Assault Rifle > --- INVENTORY (24) --- Ion Engine Light Nuclear Core Aluminum Leg Aluminum Leg Aluminum Leg Improved Heat Sink Medium Storage Unit Large Storage Unit Large Storage Unit Medium Matter Pod (100) Experimental Sensor Array Improved Power Shielding Thief Drone Bay EM Pulse Gun EM Shotgun YOLO Cannon Heavy Assault Rifle Katana Peak State ------------ > --- POWER ------------ Ion Engine > --- PROPULSION ------- Wheel Compact Wheel > --- UTILITY ---------- Humpback > --- WEAPON ----------- Heavy Assault Rifle Heavy Assault Rifle > --- INVENTORY -------- Ion Engine Light Nuclear Core Aluminum Leg Aluminum Leg Aluminum Leg Improved Heat Sink Medium Storage Unit Large Storage Unit Large Storage Unit Medium Matter Pod Experimental Sensor Array Improved Power Shielding Thief Drone Bay EM Pulse Gun YOLO Cannon Heavy Assault Rifle Katana [Rating: 14] Favorites ----------- Power Ion Engine Engine Ion Engine Propulsion Aluminum Leg Leg Aluminum Leg Wheel Wheel Utility Humpback Storage Humpback Protection Power Shielding Weapon Heavy Assault Rifle Energy Gun Small Laser Ballistic Gun Heavy Assault Rifle Build | -11 -10 -10 -10 -9 ------- Run | Scr Mat Min Exi Min Slots Evolved . | . . . . . Power . | . . . . . Propulsion . | . . . . . Utility . | . . . . . Weapon . | . . . . . Parts Attached 22 | . 14 4 2 2 Power 1 | . 1 . . . Engine 1 | . 1 . . . Core . | . . . . . Reactor . | . . . . . Propulsion 12 | . 6 3 1 2 Treads . | . . . . . Leg 10 | . 6 3 1 . Wheel 2 | . . . . 2 Hover . | . . . . . Flight . | . . . . . Utility 6 | . 4 1 1 . Device . | . . . . . Storage 4 | . 3 . 1 . Processor . | . . . . . Hackware . | . . . . . Protection 2 | . 1 1 . . Artifact . | . . . . . Weapon 3 | . 3 . . . Energy Gun . | . . . . . Energy Cannon . | . . . . . Ballistic Gun 3 | . 3 . . . Ballistic Cannon . | . . . . . Launcher . | . . . . . Special Weapon . | . . . . . Impact Weapon . | . . . . . Slashing Weapon . | . . . . . Piercing Weapon . | . . . . . Special Melee Weapon . | . . . . . Unidentified Prototypes . | . . . . . Parts Lost 3 | . 2 . . 1 Power . | . . . . . Propulsion . | . . . . . Utility . | . . . . . Weapon 3 | . 2 . . 1 Highest Loss Streak 1 | . 1 . . 1 Average Slot Usage (%) 90 | . 98 100 87 85 Engine 14 | . 14 14 14 14 Leg 19 | . 28 28 28 5 Wheel 8 | . . . . 22 Storage 14 | . 14 14 14 14 Protection 5 | . 12 14 2 . Ballistic Gun 27 | . 25 28 28 28 Naked Turns . | . . . . . Heaviest Build 91 | 9 28 29 91 91 Greatest Support 26 | 20 20 20 20 26 Greatest Overweight (x) 9 | . 1 1 4 9 Average Overweight (x) 1 | . . 1 3 3 Largest Inventory Capacity 24 | 6 10 10 24 24 Average Capacity 17 | 6 8 10 21 24 Most Carried 19 | 6 10 10 15 19 Average Carried 13 | 6 8 9 12 17 Final Capacity 24 | 6 10 10 24 24 Final Carried 19 | 6 10 10 15 19 Class Distribution -------------------- 57% | Hauler-Mutant 42% | Mutant Dominant Class ---------------- Mutant | -10/Materials Mutant | -10/Mines Hauler-Mutant | -10/Exiles Hauler-Mutant | -9/Mines Resources | -11 -10 -10 -10 -9 ----------- Run | Scr Mat Min Exi Min Matter Collected 942 | 204 416 26 174 122 Remotely . | . . . . . Salvage Created 977 | 73 752 26 . 126 Parts 61 | 2 53 3 . 3 Haulers Intercepted 1 | . 1 . . . Recyclers Shooed 2 | . 2 . . . Parts Field Recycled . | . . . . . Retrieved Matter . | . . . . . Parts Self-Destructed . | . . . . . Prevented . | . . . . . Kills | -11 -10 -10 -10 -9 ------- Run | Scr Mat Min Exi Min Combat Hostiles Destroyed 19 | . 14 . . 5 Guns 19 | . 14 . . 5 Classes Destroyed 9 | 1 6 1 . 1 Builder 1 | . 1 . . . Tunneler 1 | . . 1 . . Hauler 1 | . 1 . . . Recycler 4 | 1 2 . . 1 Operator 2 | . 2 . . . Watcher 3 | . 3 . . . Swarmer 5 | . 5 . . . Grunt 9 | . 9 . . . Assembled 5 | . . . . 5 Best Kill Streak 5 | 1 4 1 . 5 Combat Bots Only 5 | . 3 . . 5 Max Kills in Single Turn 2 | 1 2 1 . 1 Gunslinging 1 | . 1 . . . Exploded . | . . . . . Melee . | . . . . . Uniques/NPCs Destroyed . | . . . . . Combat | -11 -10 -10 -10 -9 -------- Run | Scr Mat Min Exi Min Damage Taken 951 | . 424 35 . 492 Core 258 | . 56 20 . 182 Absorbed by Shields . | . . . . . Core Remaining (%) 100 | 100 . . . . Volleys Fired 86 | 4 63 2 . 17 Largest 2 | 2 2 2 . 2 Hottest 63 | 60 63 46 . 46 Shots Fired 170 | 8 124 4 . 34 Gun 170 | 8 124 4 . 34 Cannon . | . . . . . Launcher . | . . . . . Special . | . . . . . Kinetic 152 | 4 110 4 . 34 Thermal 18 | 4 14 . . . Explosive . | . . . . . Electromagnetic . | . . . . . Robot Hit Streak 8 | 5 8 2 . 4 Robot Miss Streak 5 | 3 5 1 . 3 Penetration Max . | . . . . . Secondary Targets 10 | . 6 . . 4 Max Gunslinging Chain 1 | . 1 . . 1 Shots Hit Robots 88 | 5 64 2 . 17 Core Hits 44 | 2 30 2 . 10 Critical Hits 1 | . 1 . . . Critical Kills 1 | . 1 . . . Critical Parts Destroyed . | . . . . . Melee Attacks . | . . . . . Impact . | . . . . . Slashing . | . . . . . Piercing . | . . . . . Sneak Attacks . | . . . . . Combat Hostiles . | . . . . . Follow-up Attacks . | . . . . . Damage Inflicted 1255 | 57 905 36 . 257 Guns 1251 | 57 905 32 . 257 Cannons . | . . . . . Explosions . | . . . . . Melee . | . . . . . Ramming 4 | . . 4 . . Kinetic 1151 | 23 839 32 . 257 Thermal 100 | 34 66 . . . Explosive . | . . . . . Electromagnetic . | . . . . . Impact . | . . . . . Slashing . | . . . . . Piercing . | . . . . . Highest Corruption . | . . . . . Average Corruption . | . . . . . Corruption Purged . | . . . . . Overload Shots . | . . . . . Overflow Damage . | . . . . . Projectiles . | . . . . . Explosions . | . . . . . Melee . | . . . . . Knockbacks . | . . . . . Impact . | . . . . . Kinetic . | . . . . . Secondary . | . . . . . Self-Inflicted Damage 2 | . . 2 . . Shots . | . . . . . Rammed 1 | . . 1 . . Targets Rammed 1 | . . 1 . . Kicked . | . . . . . Crushed . | . . . . . Highest Temperature 195 | 40 42 . . 195 Average Temperature 52 | 18 8 . . 115 Received Heat Transfer 486 | . 126 . . 360 Siege Activations . | . . . . . Robots Corrupted . | . . . . . Combat Hostiles . | . . . . . Parts Fried . | . . . . . Impact Corruptions . | . . . . . Robots Melted . | . . . . . Combat Hostiles . | . . . . . Parts Melted 1 | . 1 . . . Heat Transferred 225 | 75 150 . . . Parts Sabotaged . | . . . . . Parts Stolen . | . . . . . Parts Stripped . | . . . . . Power Chain Reactions . | . . . . . Missiles Intercepted . | . . . . . Alert | -11 -10 -10 -10 -9 ------- Run | Scr Mat Min Exi Min Peak Influence 220 | 5 220 81 . 5 Initial 76 | . 3 76 . . Average 51 | 2 108 80 . . Maximum Alert Level 1 | . 1 . . . Low Security (%) 96 | 100 92 100 . 100 Level 1 3 | . 7 . . . Level 2 . | . . . . . Level 3 . | . . . . . Level 4 . | . . . . . Level 5 . | . . . . . High Security . | . . . . . Max Security . | . . . . . Squads Dispatched 3 | . 3 . . . Investigation 2 | . 2 . . . Extermination . | . . . . . Reinforcement 1 | . 1 . . . Assault . | . . . . . Garrison . | . . . . . Intercept . | . . . . . Construction Impeded . | . . . . . Haulers Reinforced . | . . . . . Stealth | -11 -10 -10 -10 -9 --------- Run | Scr Mat Min Exi Min Distress Signals 2 | . 2 . . . Communications Jammed . | . . . . . Distress Signals . | . . . . . Times Spotted 39 | . 25 . . 14 Peak Tracking Total 11 | . 4 . . 11 Tactical Retreats 3 | . 2 . . 1 Traps | -11 -10 -10 -10 -9 ------- Run | Scr Mat Min Exi Min Traps Triggered 1 | . . 1 . . Indirectly . | . . . . . Trap Hack Attempts . | . . . . . Triggered . | . . . . . Disarmed . | . . . . . Reprogrammed . | . . . . . Reused . | . . . . . Traps Extracted . | . . . . . Installed . | . . . . . Triggered . | . . . . . Machines | -11 -10 -10 -10 -9 ---------- Run | Scr Mat Min Exi Min Machines Disabled 1 | . 1 . . . Max in Single Turn 1 | . 1 . . . Machines Sabotaged . | . . . . . Garrisons Compromised . | . . . . . Overloaded Fab Kills . | . . . . . Fab Network Shutdowns . | . . . . . Hacking | -11 -10 -10 -10 -9 --------- Run | Scr Mat Min Exi Min Machines Accessed 11 | . 7 1 2 1 Terminals 6 | . 6 . . . Fabricators . | . . . . . Repair Stations . | . . . . . Recycling Units 1 | . 1 . . . Scanalyzers . | . . . . . Garrison Access . | . . . . . Total Hacks 22 | . 18 1 2 1 Successful 12 | . 8 1 2 1 Failed 10 | . 10 . . . Catastrophic 4 | . 4 . . . Database Lockouts . | . . . . . Manual 14 | . 13 . 1 . Terminals 17 | . 17 . . . Fabricators . | . . . . . Repair Stations . | . . . . . Recycling Units 1 | . 1 . . . Scanalyzers . | . . . . . Garrison Access . | . . . . . Terminal Hacks 9 | . 5 1 2 1 Record 1 | . . . 1 . Open Door 2 | . . 1 . 1 Branch Access Points 1 | . 1 . . . Locate Traps 1 | . 1 . . . Hauler Manifests 1 | . 1 . . . Zone Layout 2 | . 2 . . . EX-Prototype ID Bank 1 | . . . 1 . Fabricator Hacks . | . . . . . Repair Station Hacks . | . . . . . Recycling Unit Hacks . | . . . . . Scanalyzer . | . . . . . Garrison Access Hacks . | . . . . . Unauthorized Hacks 3 | . 3 . . . Terminals 2 | . 2 . . . Botnet 2 | . 2 . . . Fabricators . | . . . . . Repair Stations . | . . . . . Recycling Units 1 | . 1 . . . Tunnel 1 | . 1 . . . Scanalyzers . | . . . . . Garrison Access . | . . . . . Data Cores Recovered 1 | . 1 . . . Used 1 | . 1 . . . Hacking Detections 6 | . 6 . . . Full Trace Events 3 | . 3 . . . Feedback Events . | . . . . . Feedback Blocked . | . . . . . Robot Schematics Acquired . | . . . . . Robots Built . | . . . . . Matter . | . . . . . Time . | . . . . . Total Robot Build Rating . | . . . . . Part Schematics Acquired . | . . . . . Parts Built . | . . . . . Matter . | . . . . . Time . | . . . . . Total Part Build Rating . | . . . . . Parts Repaired . | . . . . . Time . | . . . . . Parts Recycled . | . . . . . Recycled Matter . | . . . . . Retrieved Matter . | . . . . . Retrieved Components . | . . . . . Parts Scanalyzed . | . . . . . Part Schematics Acquired . | . . . . . Parts Damaged . | . . . . . Bothacking | -11 -10 -10 -10 -9 ------------ Run | Scr Mat Min Exi Min Used RIF Installer . | . . . . . Robots Hacked . | . . . . . Non-combat . | . . . . . Combat . | . . . . . Robot Hacks Applied . | . . . . . Relay Couplers Released . | . . . . . Robots Rewired . | . . . . . Allies Hacked . | . . . . . Hacks Repelled . | . . . . . Allies | -11 -10 -10 -10 -9 -------- Run | Scr Mat Min Exi Min Total Allies 3 | . . 3 . . Largest Group 3 | . . 3 2 2 Highest-Rated Group 40 | . . 40 32 32 Highest-Rated Ally 16 | . . 16 16 16 Total Orders . | . . . . . Ally Attacks 4 | . . . . 4 Total Damage 62 | . . . . 62 Kills 1 | . . . . 1 Allies Corrupted . | . . . . . Allies Melted . | . . . . . Intel | -11 -10 -10 -10 -9 ------- Run | Scr Mat Min Exi Min Robot Analysis Total . | . . . . . Derelict Logs Recovered 2 | . . 1 . 1 Drone Launches . | . . . . . Drone Recoveries . | . . . . . Exploration | -11 -10 -10 -10 -9 ------------- Run | Scr Mat Min Exi Min Turns Passed 3552 | 44 1173 160 841 1334 Spaces Moved 1639 | 28 666 94 383 468 Core . | . . . . . Treads . | . . . . . Legs 1250 | 28 666 94 383 79 Wheels 389 | . . . . 389 Hover . | . . . . . Flight . | . . . . . Fastest Speed 120 | 120 120 150 120 120 Average Speed 158 | 120 140 150 216 140 Slowest Speed 240 | 120 150 150 240 240 Overloaded Moves . | . . . . . Propulsion Burnouts . | . . . . . Robots Hopped . | . . . . . Cave-ins Triggered . | . . . . . Exploration Rate (%) 51 | 4 91 30 71 62 Regions Visited 4 Branch Regions 3 Pre-discovered Areas 2 | . 1 . 1 . Known Exits Taken 1 | . 1 . . . Unknown Exits Taken 3 | 1 . 1 1 . Scrap Searched 2 | . . . . 2 Spaces Dug . | . . . . . Terrain Destroyed . | . . . . . Melee . | . . . . . Projectile . | . . . . . AOE . | . . . . . Terrain Rammed . | . . . . . Walls Destroyed . | . . . . . Machines Disabled . | . . . . . Actions | -11 -10 -10 -10 -9 --------- Run | Scr Mat Min Exi Min Total 2442 | 31 793 109 397 1112 Wait 642 | . 18 5 . 619 Move 1635 | 27 665 93 382 468 Hop . | . . . . . Pick Up 29 | . 14 1 10 4 Fast Attach 6 | . 1 2 1 2 Attach 3 | . 2 . 1 . Detach . | . . . . . Swap 13 | . 11 2 . . Drop 27 | . 19 3 3 2 Fire 86 | 4 63 2 . 17 Melee . | . . . . . Ram . | . . . . . Kick 1 | . . 1 . . Crush . | . . . . . Escape Stasis . | . . . . . Rewire . | . . . . . Trap . | . . . . . Miscellaneous . | . . . . . Route ------- -11/Scrapyard -10/Materials (discovered 4 exits: [*Mat x3] / *Min) -10/Mines -10/Exiles -9/Mines (discovered 1 exit: *Mat) History --------- Turn | Location | Event 1 | -11/Scrapyard | Discovered new exit (range 3) 45 | -11/Scrapyard | Entered Materials 309 | -10/Materials | Build established: Mutant 461 | -10/Materials | Discovered new exit (range 9) 653 | -10/Materials | Discovered new exit (range 9) 1039 | -10/Materials | Discovered new exit (range 15) 1093 | -10/Materials | Discovered new exit (range 14) 1186 | -10/Materials | Identified exit to Mines 1218 | -10/Materials | Entered Mines 1253 | -10/Mines | Assisted by bots powering up and referring to "LRC-V3" 1304 | -10/Mines | Met a Derelict who couldn't figure out how to use a Trap Extractor 1312 | -10/Mines | Learned Materials emergency access door positions 1365 | -10/Mines | Deemed a non-threat by the Exiles lab entrance 1367 | -10/Mines | Discovered new exit (range 5) 1378 | -10/Mines | Entered Exiles 1378 | -10/Exiles | Accompanied by 2 allies 1414 | -10/Exiles | Met 8R-AWN 1437 | -10/Exiles | Met EX-HEX 1603 | -10/Exiles | Met EX-DEC 1658 | -10/Exiles | Learned location of Zion (-6) 1816 | -10/Exiles | Build established: Hauler-Mutant 1868 | -10/Exiles | Met EX-BIN 1901 | -10/Exiles | Aligned with FarCom system 1904 | -10/Exiles | Given EX-Vault access code 1959 | -10/Exiles | Opened EX-Vault 1978 | -10/Exiles | Found YOLO Cannon 2034 | -10/Exiles | Warned to stay clear of 0b10 Research branches 2193 | -10/Exiles | Discovered new exit (range 14) 2219 | -10/Exiles | Left Exiles lab with YOLO Cannon 2219 | -10/Exiles | Entered Mines 2219 | -9/Mines | Accompanied by 2 allies 2322 | -9/Mines | Assembled infested the area 2327 | -9/Mines | Assisted by a Guerilla fighting off Assembled 2360 | -9/Mines | Core integrity fell below 50% 2380 | -9/Mines | Core integrity fell below 20% 2576 | -9/Mines | Found a damaged Exp. Sensor Array with a note attached 2578 | -9/Mines | Found Prototype Device 2614 | -9/Mines | Found the Drone Emporium 2618 | -9/Mines | Identified exit to Materials 2621 | -9/Mines | Found Prototype Device 3553 | -9/Mines | Destroyed by S-10 Pest with Light Assault Rifle Last Messages --------------- 02603_ R-06 Scavenger destroyed. 02606_ Acquired 12 matter. 02613_ Connecting with SHOP.Sys... >>Open Door Sealed Doors opened. 02614_ AI-1E8(g): "Well that was anticlimactic. Heard you outside and thought you were from the Merchants Guild. I haven't even officially opened my Drone Emporium yet but am totally ready to tell them where they can shove that C&D." 02616_ AI-1E8(g): "I'm a fan of the free market. Free drones for all! No strings attached!" 02618_ Acquired derelict log, extracted data. 02621_ Acquired Prototype Device. 02911_ Searching scrap... 02911_ Found EM Shotgun. 02911_ Found Imp. Targeting Computer. 02911_ Found 26 Matter. 02914_ Acquired EM Shotgun. 03230_ K-01 Serf collects debris. 03551_ Hvy. Assault Rifle destroyed. Map ----- +----------------------------------------------------+ | ???????????????????????????????????????? ## ##? | | ????????????????????????????????????????# ?####?? | | ???????????????????????????????????????##% ??????? | | ???????????????????????????????????????? #?????? | | ???????????????????????????????????????## ##????? | | ??????????????????????????????????????## ##???? | | ?????????????????????????????????????## #???? | | ???????????????????????????????????### #???? | | ??????????????????????????????????## ##?## | | ??????????????????????????????????# ### | | ??????????????????????????????????# | | ???????????????????????????????????# """ | | ??????????????????????????????????## """ | | ??????????????????????############# """ | | ??????????????????????# % | | ??????????????????????# ! ## | | ??????????????????????# ########## ##### | | ??????????????????????# #????????# #???#### | | ??????????????????????# #????????# #??????## | | ????????? ###### #????????# #???????# | | ????????? #????????# #???????# | | ????????g???????####### #????????# #???????# | | ??????????g???????????#s #????????# #???????# | | ??????????????????????# #????????# #???????# | | ????????????????????###ss########?# #???????# | | ????????????????????# @ T#?# #???????# | | ????????????????????# """s ##?# #???????## | | ????????????????? u """ #??# #????????## | | ????????????????# """ < #??# #??????????# | | ????????????????# t## #??# #???????##### | | ????????????????# ?############??# #####??## ## | | ??????????????? ????????????????# #?## # | | ?????????????? ?????????????????###### ### # | | ????????????? ???????????????????????# ## | | ???????????? ????????????????????????# | | ???????????? ?????????????????????????##### ## | | ???????????????????????????????????????????##### | | ???????????????????????????????????????????????## | | ????????????????????????????????????????????????## | | ?????????????????????????????????????????????????# | | ?????????????????????????????????????????????????? | | ?????????????????????????????????????????????????? | | ?????????????????????????????????????????????????? | | ?????????????????????????????????????????????????? | | | | | | | | | | | | | +----------------------------------------------------+ Best States ------------- Heat Dissipation 25 Energy Generation 10 Energy Capacity 250 Matter Stores 300 Matter Capacity 300 Sight Range 16 Terrain Scan Density 10 Power Shielding 66 Evasion (%) 40 Item Schematics ----------------- None Robot Schematics ------------------ None Fabricated ------------ Nothing Alien Tech Used ----------------- None Achievements -------------- None Challenges ------------ None Game ------ Seed StealthDeliveryLaser Manual? 0 Play Time 00:18:59 Cumulative 163.9 hours Start 2021.11.03 @ 04:27:29 End 2021.11.03 @ 04:42:23 Sessions 1 Manual Loads 0 Difficulty Rogue Special Mode None Game No. 223 Rogue 147 Adventurer 0 Explorer 76 Win Type - Total 33 Types 24/1/4/3/1/0/0/0/0 Lore% 87 Gallery% 82 Achievement% 60 Wizard Run 0 Options --------- ASCII 0 Keyboard 0 Movement Numpad Keybinds 1 Fullscreen 2 Font 18/X11 Map View 76x50 Tactical HUD 1 Map Filters NONE Filters NONE Steam 1 RUN: 8bcd7225-49c3-4768-bc20-a1b4104b36d8